[Event "Titled Tuesday Blitz August 3 2021"]
[White "Bluebaum, Matthias"]
[Black "Batsuren, Dambasuren"]
[WhiteFideId "24651516"]
[BlackFideId "4902920"]
[WhiteElo "2685"]
[BlackElo "2371"]
[Result "1-0"]
[Round "10"]
[TimeControl "180+1"]
[Date "2021.08.03"]
[WhiteClock "0:00:08"]
[BlackClock "0:00:02"]

1. d4 {[%clk 0:03:00]}  Nf6 {[%clk 0:03:00]} 2. c4 {[%clk 0:02:59]}  e6 {[%clk 0:03:00]} 3. Nc3 {[%clk 0:03:00]}  Bb4 {[%clk 0:03:01]} 4. e3 {[%clk 0:03:01]}  O-O {[%clk 0:03:00]} 5. Bd2 {[%clk 0:03:01]}  b6 {[%clk 0:02:59]} 6. Bd3 {[%clk 0:03:00]}  Bb7 {[%clk 0:02:59]} 7. Nf3 {[%clk 0:03:00]}  Bxc3 {[%clk 0:02:59]} 8. Bxc3 {[%clk 0:03:01]}  Ne4 {[%clk 0:02:59]} 9. Bxe4 {[%clk 0:03:01]}  Bxe4 {[%clk 0:02:59]} 10. d5 {[%clk 0:03:02]}  f6 {[%clk 0:02:35]} 11. Nd2 {[%clk 0:02:51]}  Bg6 {[%clk 0:02:34]} 12. h4 {[%clk 0:02:51]}  h6 {[%clk 0:02:30]} 13. Qg4 {[%clk 0:02:47]}  Qe8 {[%clk 0:02:14]} 14. h5 {[%clk 0:02:08]}  Bf5 {[%clk 0:02:14]} 15. Qf3 {[%clk 0:02:06]}  Na6 {[%clk 0:02:08]} 16. b4 {[%clk 0:01:57]}  Bh7 {[%clk 0:02:07]} 17. a3 {[%clk 0:01:53]}  exd5 {[%clk 0:02:03]} 18. cxd5 {[%clk 0:01:51]}  c5 {[%clk 0:01:47]} 19. Qg3 {[%clk 0:01:34]}  d6 {[%clk 0:01:25]} 20. O-O {[%clk 0:01:29]}  Nc7 {[%clk 0:01:23]} 21. bxc5 {[%clk 0:01:26]}  Nxd5 {[%clk 0:01:21]} 22. Bb2 {[%clk 0:01:20]}  dxc5 {[%clk 0:01:20]} 23. e4 {[%clk 0:01:19]}  Ne7 {[%clk 0:01:16]} 24. Rfe1 {[%clk 0:01:13]}  Rd8 {[%clk 0:01:15]} 25. Nc4 {[%clk 0:01:06]}  Qxh5 {[%clk 0:01:14]} 26. Qc7 {[%clk 0:00:56]}  Qf7 {[%clk 0:01:15]} 27. Qxa7 {[%clk 0:00:50]}  Ra8 {[%clk 0:00:47]} 28. Qc7 {[%clk 0:00:32]}  Qxc4 {[%clk 0:00:45]} 29. Qxe7 {[%clk 0:00:32]}  Rae8 {[%clk 0:00:46]} 30. Qd6 {[%clk 0:00:29]}  Re6 {[%clk 0:00:46]} 31. Qc7 {[%clk 0:00:28]}  Bxe4 {[%clk 0:00:43]} 32. Rad1 {[%clk 0:00:27]}  Ba8 {[%clk 0:00:14]} 33. Rxe6 {[%clk 0:00:25]}  Qxe6 {[%clk 0:00:15]} 34. Rd7 {[%clk 0:00:21]}  Qg4 {[%clk 0:00:15]} 35. g3 {[%clk 0:00:12]}  Kh8 {[%clk 0:00:08]} 36. Qd6 {[%clk 0:00:09]}  Rg8 {[%clk 0:00:05]} 37. Bxf6 {[%clk 0:00:08]}  Qh5 {[%clk 0:00:01]} 38. Bxg7+ {[%clk 0:00:08]}  Kh7 {[%clk 0:00:02]} 39. Bf8+ {[%clk 0:00:08]} 1-0


[Site "https://www.chess.com"]

[Event "Titled Tuesday Blitz August 3 2021"]
[White "Boraso, Alessio"]
[Black "Mitusov, Semen"]
[WhiteFideId "848077"]
[BlackFideId "14151049"]
[WhiteElo "2277"]
[BlackElo "2256"]
[Result "1/2-1/2"]
[Round "10"]
[TimeControl "180+1"]
[Date "2021.08.03"]
[WhiteClock "0:00:11"]
[BlackClock "0:00:47"]

1. g3 {[%clk 0:03:00]}  e5 {[%clk 0:02:57]} 2. Bg2 {[%clk 0:02:58]}  d5 {[%clk 0:02:57]} 3. c4 {[%clk 0:02:55]}  dxc4 {[%clk 0:02:52]} 4. Nf3 {[%clk 0:02:48]}  Nc6 {[%clk 0:02:48]} 5. Qa4 {[%clk 0:02:43]}  Bd6 {[%clk 0:02:40]} 6. Na3 {[%clk 0:02:38]}  Bd7 {[%clk 0:02:36]} 7. Nxc4 {[%clk 0:02:33]}  Nf6 {[%clk 0:02:31]} 8. Nxd6+ {[%clk 0:02:26]}  cxd6 {[%clk 0:02:30]} 9. d3 {[%clk 0:02:23]}  O-O {[%clk 0:02:20]} 10. O-O {[%clk 0:02:21]}  h6 {[%clk 0:02:01]} 11. h3 {[%clk 0:02:05]}  Qe7 {[%clk 0:01:52]} 12. Be3 {[%clk 0:02:03]}  Nd4 {[%clk 0:01:47]} 13. Qd1 {[%clk 0:02:01]}  Nxf3+ {[%clk 0:01:47]} 14. exf3 {[%clk 0:01:55]}  Bc6 {[%clk 0:01:47]} 15. f4 {[%clk 0:01:53]}  Bxg2 {[%clk 0:01:44]} 16. Kxg2 {[%clk 0:01:54]}  Rad8 {[%clk 0:01:35]} 17. Re1 {[%clk 0:01:54]}  Qe6 {[%clk 0:01:31]} 18. Qf3 {[%clk 0:01:50]}  Qd7 {[%clk 0:01:28]} 19. Bxa7 {[%clk 0:01:47]}  exf4 {[%clk 0:01:24]} 20. Bd4 {[%clk 0:01:43]}  Qf5 {[%clk 0:01:20]} 21. Bxf6 {[%clk 0:01:39]}  Qxf6 {[%clk 0:01:20]} 22. Qxf4 {[%clk 0:01:36]}  Qxb2 {[%clk 0:01:20]} 23. Rab1 {[%clk 0:01:33]}  Qxa2 {[%clk 0:01:16]} 24. Rxb7 {[%clk 0:01:34]}  Qd5+ {[%clk 0:01:10]} 25. Qf3 {[%clk 0:01:34]}  Qxf3+ {[%clk 0:01:10]} 26. Kxf3 {[%clk 0:01:35]}  Rfe8 {[%clk 0:01:11]} 27. Rxe8+ {[%clk 0:01:31]}  Rxe8 {[%clk 0:01:12]} 28. Rd7 {[%clk 0:01:28]}  Re6 {[%clk 0:01:11]} 29. h4 {[%clk 0:01:26]}  g6 {[%clk 0:01:11]} 30. g4 {[%clk 0:01:25]}  Kg7 {[%clk 0:01:10]} 31. g5 {[%clk 0:01:24]}  hxg5 {[%clk 0:01:10]} 32. hxg5 {[%clk 0:01:24]}  Re5 {[%clk 0:01:10]} 33. Rxd6 {[%clk 0:01:22]}  Rxg5 {[%clk 0:01:10]} 34. Ke4 {[%clk 0:01:21]}  Rg1 {[%clk 0:01:08]} 35. Ra6 {[%clk 0:01:15]}  f5+ {[%clk 0:01:07]} 36. Ke5 {[%clk 0:01:12]}  Kh6 {[%clk 0:01:02]} 37. d4 {[%clk 0:01:09]}  Rf1 {[%clk 0:00:59]} 38. Ra2 {[%clk 0:01:06]}  Kg5 {[%clk 0:00:57]} 39. Rd2 {[%clk 0:00:57]}  Re1+ {[%clk 0:00:54]} 40. Kd6 {[%clk 0:00:57]}  Kf4 {[%clk 0:00:54]} 41. d5 {[%clk 0:00:55]}  g5 {[%clk 0:00:53]} 42. Kc7 {[%clk 0:00:56]}  g4 {[%clk 0:00:50]} 43. d6 {[%clk 0:00:56]}  Kf3 {[%clk 0:00:50]} 44. d7 {[%clk 0:00:55]}  Re7 {[%clk 0:00:50]} 45. Kd6 {[%clk 0:00:51]}  Rxd7+ {[%clk 0:00:49]} 46. Kxd7 {[%clk 0:00:52]}  f4 {[%clk 0:00:49]} 47. Ke6 {[%clk 0:00:51]}  g3 {[%clk 0:00:50]} 48. fxg3 {[%clk 0:00:52]}  fxg3 {[%clk 0:00:50]} 49. Kf5 {[%clk 0:00:18]}  g2 {[%clk 0:00:50]} 50. Rd3+ {[%clk 0:00:18]}  Ke2 {[%clk 0:00:48]} 51. Rg3 {[%clk 0:00:17]}  Kf2 {[%clk 0:00:48]} 52. Kf4 {[%clk 0:00:10]}  g1=Q {[%clk 0:00:46]} 53. Rxg1 {[%clk 0:00:11]}  Kxg1 {[%clk 0:00:47]} 1/2-1/2


[Site "https://www.chess.com"]

[Event "Titled Tuesday Blitz August 3 2021"]
[White "Bures, Vit"]
[Black "Ljukin, Sergei"]
[WhiteFideId "309052"]
[BlackFideId "14102200"]
[WhiteElo "2131"]
[BlackElo "2309"]
[Result "0-1"]
[Round "10"]
[TimeControl "180+1"]
[Date "2021.08.03"]
[WhiteClock "0:00:04"]
[BlackClock "0:00:06"]

1. d4 {[%clk 0:02:56]}  d5 {[%clk 0:02:59]} 2. c4 {[%clk 0:02:56]}  c6 {[%clk 0:02:58]} 3. Nc3 {[%clk 0:02:56]}  Nf6 {[%clk 0:02:59]} 4. e3 {[%clk 0:02:54]}  e6 {[%clk 0:02:58]} 5. Nf3 {[%clk 0:02:54]}  Nbd7 {[%clk 0:02:58]} 6. Bd3 {[%clk 0:02:54]}  dxc4 {[%clk 0:02:58]} 7. Bxc4 {[%clk 0:02:55]}  b5 {[%clk 0:02:58]} 8. Bd3 {[%clk 0:02:53]}  a6 {[%clk 0:02:59]} 9. a4 {[%clk 0:02:53]}  Bb7 {[%clk 0:02:55]} 10. O-O {[%clk 0:02:52]}  Be7 {[%clk 0:02:50]} 11. e4 {[%clk 0:02:52]}  O-O {[%clk 0:02:41]} 12. e5 {[%clk 0:02:49]}  Nd5 {[%clk 0:02:40]} 13. Nxd5 {[%clk 0:02:49]}  cxd5 {[%clk 0:02:32]} 14. axb5 {[%clk 0:02:45]}  axb5 {[%clk 0:02:32]} 15. Rxa8 {[%clk 0:02:43]}  Qxa8 {[%clk 0:02:32]} 16. Bxb5 {[%clk 0:02:43]}  Nb6 {[%clk 0:02:30]} 17. Bg5 {[%clk 0:02:30]}  Bxg5 {[%clk 0:02:28]} 18. Nxg5 {[%clk 0:02:29]}  h6 {[%clk 0:02:29]} 19. Nf3 {[%clk 0:02:26]}  Ba6 {[%clk 0:02:29]} 20. Qd3 {[%clk 0:02:13]}  Bxb5 {[%clk 0:02:28]} 21. Qxb5 {[%clk 0:02:13]}  Rb8 {[%clk 0:02:29]} 22. Qe2 {[%clk 0:01:56]}  Nc4 {[%clk 0:02:27]} 23. h3 {[%clk 0:01:51]}  Rxb2 {[%clk 0:02:24]} 24. Qd3 {[%clk 0:01:51]}  Qa2 {[%clk 0:02:20]} 25. h4 {[%clk 0:01:48]}  Rb3 {[%clk 0:01:53]} 26. Qd1 {[%clk 0:01:47]}  Qa3 {[%clk 0:01:23]} 27. h5 {[%clk 0:01:43]}  Rd3 {[%clk 0:01:18]} 28. Qb1 {[%clk 0:01:39]}  Rb3 {[%clk 0:01:10]} 29. Qd1 {[%clk 0:01:38]}  Nb2 {[%clk 0:00:50]} 30. Qe2 {[%clk 0:01:28]}  Nd3 {[%clk 0:00:48]} 31. Qc2 {[%clk 0:01:26]}  Rc3 {[%clk 0:00:43]} 32. Qb1 {[%clk 0:01:26]}  Rb3 {[%clk 0:00:40]} 33. Qa1 {[%clk 0:01:26]}  Nf4 {[%clk 0:00:36]} 34. Qd1 {[%clk 0:00:47]}  Nxh5 {[%clk 0:00:31]} 35. Nd2 {[%clk 0:00:45]}  Rd3 {[%clk 0:00:26]} 36. Qxh5 {[%clk 0:00:44]}  Rxd2 {[%clk 0:00:26]} 37. Rb1 {[%clk 0:00:44]}  Rb2 {[%clk 0:00:16]} 38. Rc1 {[%clk 0:00:44]}  Rb8 {[%clk 0:00:14]} 39. Rc7 {[%clk 0:00:44]}  Rf8 {[%clk 0:00:13]} 40. Qg4 {[%clk 0:00:41]}  Qa5 {[%clk 0:00:12]} 41. Rc1 {[%clk 0:00:38]}  Qd2 {[%clk 0:00:11]} 42. Rd1 {[%clk 0:00:37]}  Qb2 {[%clk 0:00:11]} 43. g3 {[%clk 0:00:34]}  Rc8 {[%clk 0:00:10]} 44. Kg2 {[%clk 0:00:31]}  Rc2 {[%clk 0:00:10]} 45. Qf3 {[%clk 0:00:30]}  Re2 {[%clk 0:00:08]} 46. Rd3 {[%clk 0:00:18]}  Qc2 {[%clk 0:00:08]} 47. Ra3 {[%clk 0:00:12]}  Qe4 {[%clk 0:00:08]} 48. Qxe4 {[%clk 0:00:05]}  Rxe4 {[%clk 0:00:07]} 49. Rd3 {[%clk 0:00:04]}  Re2 {[%clk 0:00:07]} 50. Kf3 {[%clk 0:00:04]}  Ra2 {[%clk 0:00:07]} 51. Ke3 {[%clk 0:00:03]}  Kh7 {[%clk 0:00:07]} 52. f4 {[%clk 0:00:03]}  Kg6 {[%clk 0:00:07]} 53. g4 {[%clk 0:00:03]}  Ra1 {[%clk 0:00:07]} 54. Kf3 {[%clk 0:00:03]}  Rf1+ {[%clk 0:00:07]} 55. Kg3 {[%clk 0:00:03]}  Re1 {[%clk 0:00:07]} 56. Kf3 {[%clk 0:00:03]}  Re4 {[%clk 0:00:06]} 57. Kg3 {[%clk 0:00:03]}  h5 {[%clk 0:00:06]} 58. gxh5+ {[%clk 0:00:03]}  Kxh5 {[%clk 0:00:06]} 59. Rd1 {[%clk 0:00:03]}  Kg6 {[%clk 0:00:07]} 60. Kf3 {[%clk 0:00:03]}  Kf5 {[%clk 0:00:07]} 61. Kg3 {[%clk 0:00:02]}  Rxf4 {[%clk 0:00:06]} 62. Rh1 {[%clk 0:00:01]}  Rg4+ {[%clk 0:00:06]} 63. Kf3 {[%clk 0:00:01]}  Rxd4 {[%clk 0:00:06]} 64. Ke3 {[%clk 0:00:01]}  Re4+ {[%clk 0:00:06]} 65. Kf3 {[%clk 0:00:01]}  Kxe5 {[%clk 0:00:06]} 66. Rh5+ {[%clk 0:00:02]}  Kf6 {[%clk 0:00:05]} 67. Rh7 {[%clk 0:00:03]}  g6 {[%clk 0:00:06]} 68. Rh8 {[%clk 0:00:03]}  Re5 {[%clk 0:00:06]} 69. Kf4 {[%clk 0:00:03]}  d4 {[%clk 0:00:06]} 70. Kg4 {[%clk 0:00:04]}  Rd5 {[%clk 0:00:06]} 0-1


[Site "https://www.chess.com"]

[Event "Titled Tuesday Blitz August 3 2021"]
[White "Buscar, Michael"]
[Black "Ballester Llagaria, Luis Eduardo"]
[WhiteFideId "2603616"]
[BlackFideId "2297620"]
[WhiteElo "2010"]
[BlackElo "2344"]
[Result "0-1"]
[Round "10"]
[TimeControl "180+1"]
[Date "2021.08.03"]
[WhiteClock "0:00:01"]
[BlackClock "0:01:03"]

1. d4 {[%clk 0:02:51]}  d5 {[%clk 0:03:00]} 2. c4 {[%clk 0:02:51]}  dxc4 {[%clk 0:03:01]} 3. e3 {[%clk 0:02:51]}  Nf6 {[%clk 0:03:00]} 4. Bxc4 {[%clk 0:02:51]}  e6 {[%clk 0:03:00]} 5. Nc3 {[%clk 0:02:49]}  a6 {[%clk 0:03:01]} 6. Nf3 {[%clk 0:02:49]}  b5 {[%clk 0:03:02]} 7. Bd3 {[%clk 0:02:46]}  c5 {[%clk 0:03:01]} 8. O-O {[%clk 0:02:46]}  Bb7 {[%clk 0:03:01]} 9. a3 {[%clk 0:02:41]}  Nbd7 {[%clk 0:03:00]} 10. Qe2 {[%clk 0:02:35]}  Be7 {[%clk 0:02:54]} 11. Rd1 {[%clk 0:02:35]}  Qc7 {[%clk 0:02:54]} 12. e4 {[%clk 0:02:30]}  cxd4 {[%clk 0:02:54]} 13. Nxd4 {[%clk 0:02:30]}  Ne5 {[%clk 0:02:53]} 14. Bc2 {[%clk 0:02:27]}  Neg4 {[%clk 0:02:54]} 15. g3 {[%clk 0:02:20]}  Bc5 {[%clk 0:02:54]} 16. h3 {[%clk 0:02:08]}  Nxf2 {[%clk 0:02:54]} 17. Qxf2 {[%clk 0:02:06]}  e5 {[%clk 0:02:54]} 18. Be3 {[%clk 0:02:05]}  exd4 {[%clk 0:02:54]} 19. Bxd4 {[%clk 0:01:54]}  Bxd4 {[%clk 0:02:55]} 20. Rxd4 {[%clk 0:01:54]}  O-O {[%clk 0:02:55]} 21. Nd5 {[%clk 0:01:43]}  Qe5 {[%clk 0:02:28]} 22. Nxf6+ {[%clk 0:01:36]}  gxf6 {[%clk 0:02:29]} 23. Rad1 {[%clk 0:01:32]}  Rac8 {[%clk 0:02:11]} 24. Bb1 {[%clk 0:01:25]}  Rc7 {[%clk 0:01:52]} 25. Qf4 {[%clk 0:01:14]}  Re8 {[%clk 0:01:37]} 26. Rd8 {[%clk 0:00:54]}  Re7 {[%clk 0:01:33]} 27. Qxe5 {[%clk 0:00:21]}  Rxe5 {[%clk 0:01:31]} 28. Rxe8+ {[%clk 0:00:16]}  Rxe8 {[%clk 0:01:32]} 29. Rd4 {[%clk 0:00:15]}  f5 {[%clk 0:01:32]} 30. Kf1 {[%clk 0:00:13]}  fxe4 {[%clk 0:01:27]} 31. Ke2 {[%clk 0:00:13]}  Bc8 {[%clk 0:01:18]} 32. g4 {[%clk 0:00:12]}  h5 {[%clk 0:01:12]} 33. Ke3 {[%clk 0:00:08]}  hxg4 {[%clk 0:01:11]} 34. hxg4 {[%clk 0:00:08]}  Bxg4 {[%clk 0:01:12]} 35. Rxe4 {[%clk 0:00:03]}  Be6 {[%clk 0:01:11]} 36. Kd4 {[%clk 0:00:02]}  Rc8 {[%clk 0:01:07]} 37. Re2 {[%clk 0:00:01]}  Kg7 {[%clk 0:01:05]} 38. Be4 {[%clk 0:00:01]}  Kf6 {[%clk 0:01:03]} 0-1


[Site "https://www.chess.com"]

[Event "Titled Tuesday Blitz August 3 2021"]
[White "Csonka, Balazs"]
[Black "Eternauta2400"]
[WhiteFideId "742910"]
[WhiteElo "2404"]
[BlackElo "2541"]
[Result "1-0"]
[Round "10"]
[TimeControl "180+1"]
[Date "2021.08.03"]
[WhiteClock "0:00:09"]
[BlackClock "0:00:19"]

1. d4 {[%clk 0:03:00]}  Nf6 {[%clk 0:02:59]} 2. Bg5 {[%clk 0:03:01]}  g6 {[%clk 0:02:56]} 3. Bxf6 {[%clk 0:03:00]}  exf6 {[%clk 0:02:55]} 4. e3 {[%clk 0:03:00]}  Bg7 {[%clk 0:02:56]} 5. g3 {[%clk 0:03:00]}  O-O {[%clk 0:02:56]} 6. Bg2 {[%clk 0:02:59]}  f5 {[%clk 0:02:56]} 7. Ne2 {[%clk 0:02:57]}  c5 {[%clk 0:02:41]} 8. O-O {[%clk 0:02:55]}  cxd4 {[%clk 0:02:36]} 9. Nxd4 {[%clk 0:02:54]}  Nc6 {[%clk 0:02:33]} 10. c3 {[%clk 0:02:54]}  a6 {[%clk 0:02:30]} 11. Nd2 {[%clk 0:02:45]}  Rb8 {[%clk 0:02:28]} 12. a4 {[%clk 0:02:45]}  Qc7 {[%clk 0:02:24]} 13. Qb3 {[%clk 0:02:23]}  d6 {[%clk 0:02:19]} 14. Qc4 {[%clk 0:02:15]}  Bd7 {[%clk 0:02:15]} 15. Rfc1 {[%clk 0:02:03]}  Rfc8 {[%clk 0:02:09]} 16. Bd5 {[%clk 0:01:57]}  Be8 {[%clk 0:02:05]} 17. Qa2 {[%clk 0:01:53]}  Ne5 {[%clk 0:02:00]} 18. N2f3 {[%clk 0:01:32]}  Bc6 {[%clk 0:01:56]} 19. Rd1 {[%clk 0:01:28]}  Qe7 {[%clk 0:01:39]} 20. a5 {[%clk 0:01:23]}  Nd7 {[%clk 0:01:33]} 21. Nxc6 {[%clk 0:01:00]}  bxc6 {[%clk 0:01:34]} 22. Bc4 {[%clk 0:01:00]}  Ra8 {[%clk 0:01:24]} 23. Nd4 {[%clk 0:00:59]}  Nc5 {[%clk 0:01:20]} 24. Bf1 {[%clk 0:00:40]}  Kh8 {[%clk 0:01:14]} 25. Bg2 {[%clk 0:00:37]}  Ne4 {[%clk 0:01:11]} 26. Bxe4 {[%clk 0:00:35]}  fxe4 {[%clk 0:01:07]} 27. Rd2 {[%clk 0:00:36]}  h5 {[%clk 0:01:05]} 28. Rad1 {[%clk 0:00:33]}  h4 {[%clk 0:01:05]} 29. Ne2 {[%clk 0:00:30]}  d5 {[%clk 0:01:03]} 30. c4 {[%clk 0:00:30]}  Rd8 {[%clk 0:00:36]} 31. cxd5 {[%clk 0:00:29]}  cxd5 {[%clk 0:00:37]} 32. Rxd5 {[%clk 0:00:29]}  Rxd5 {[%clk 0:00:31]} 33. Qxd5 {[%clk 0:00:30]}  Rb8 {[%clk 0:00:31]} 34. gxh4 {[%clk 0:00:20]}  Rb5 {[%clk 0:00:29]} 35. Qd8+ {[%clk 0:00:19]}  Bf8 {[%clk 0:00:28]} 36. Qxe7 {[%clk 0:00:12]}  Bxe7 {[%clk 0:00:29]} 37. Nc3 {[%clk 0:00:12]}  Rxa5 {[%clk 0:00:27]} 38. Nxe4 {[%clk 0:00:12]}  Bxh4 {[%clk 0:00:27]} 39. Rd7 {[%clk 0:00:11]}  Kg8 {[%clk 0:00:25]} 40. Nd6 {[%clk 0:00:08]}  f5 {[%clk 0:00:20]} 41. Nc4 {[%clk 0:00:08]}  Ra1+ {[%clk 0:00:20]} 42. Kg2 {[%clk 0:00:08]}  Rc1 {[%clk 0:00:20]} 43. Ne5 {[%clk 0:00:07]}  g5 {[%clk 0:00:18]} 44. Ng6 {[%clk 0:00:05]}  Rc2 {[%clk 0:00:17]} 45. Nxh4 {[%clk 0:00:04]}  gxh4 {[%clk 0:00:18]} 46. b4 {[%clk 0:00:04]}  Rb2 {[%clk 0:00:16]} 47. Rd4 {[%clk 0:00:04]}  h3+ {[%clk 0:00:15]} 48. Kg3 {[%clk 0:00:05]}  Kf7 {[%clk 0:00:15]} 49. Rf4 {[%clk 0:00:05]}  Ke6 {[%clk 0:00:15]} 50. Kxh3 {[%clk 0:00:06]}  Ke5 {[%clk 0:00:15]} 51. Kg3 {[%clk 0:00:07]}  Rb1 {[%clk 0:00:16]} 52. Kg2 {[%clk 0:00:06]}  Rb2 {[%clk 0:00:15]} 53. Rd4 {[%clk 0:00:07]}  Ra2 {[%clk 0:00:15]} 54. h4 {[%clk 0:00:07]}  a5 {[%clk 0:00:15]} 55. bxa5 {[%clk 0:00:06]}  Rxa5 {[%clk 0:00:16]} 56. Rf4 {[%clk 0:00:06]}  Ra1 {[%clk 0:00:13]} 57. h5 {[%clk 0:00:06]}  Ra6 {[%clk 0:00:10]} 58. Rh4 {[%clk 0:00:05]}  Rh6 {[%clk 0:00:08]} 59. Kg3 {[%clk 0:00:05]}  Kf6 {[%clk 0:00:09]} 60. Kf4 {[%clk 0:00:05]}  Rh8 {[%clk 0:00:09]} 61. h6 {[%clk 0:00:06]}  Kg6 {[%clk 0:00:09]} 62. h7 {[%clk 0:00:05]}  Rxh7 {[%clk 0:00:09]} 63. Rxh7 {[%clk 0:00:05]}  Kxh7 {[%clk 0:00:10]} 64. Kg5 {[%clk 0:00:05]}  Kg7 {[%clk 0:00:11]} 65. f3 {[%clk 0:00:05]}  Kf7 {[%clk 0:00:12]} 66. Kxf5 {[%clk 0:00:05]}  Ke7 {[%clk 0:00:12]} 67. e4 {[%clk 0:00:05]}  Kf7 {[%clk 0:00:13]} 68. e5 {[%clk 0:00:06]}  Ke7 {[%clk 0:00:14]} 69. f4 {[%clk 0:00:07]}  Kf7 {[%clk 0:00:15]} 70. e6+ {[%clk 0:00:08]}  Ke7 {[%clk 0:00:16]} 71. Ke5 {[%clk 0:00:09]}  Kf8 {[%clk 0:00:16]} 72. f5 {[%clk 0:00:09]}  Ke7 {[%clk 0:00:17]} 73. f6+ {[%clk 0:00:09]}  Ke8 {[%clk 0:00:18]} 74. Kd6 {[%clk 0:00:09]}  Kf8 {[%clk 0:00:19]} 75. Kd7 {[%clk 0:00:09]} 1-0


[Site "https://www.chess.com"]

[Event "Titled Tuesday Blitz August 3 2021"]
[White "Daggupati, Balaji"]
[Black "Zhuravlev, Alexey"]
[WhiteFideId "2090759"]
[BlackFideId "4164199"]
[WhiteElo "2665"]
[BlackElo "2471"]
[Result "0-1"]
[Round "10"]
[TimeControl "180+1"]
[Date "2021.08.03"]
[WhiteClock "0:00:44"]
[BlackClock "0:00:25"]

1. e4 {[%clk 0:03:00]}  c6 {[%clk 0:02:22]} 2. Ne2 {[%clk 0:02:59]}  d5 {[%clk 0:02:21]} 3. e5 {[%clk 0:02:59]}  Bg4 {[%clk 0:02:21]} 4. d4 {[%clk 0:02:57]}  e6 {[%clk 0:02:18]} 5. h3 {[%clk 0:02:54]}  Bxe2 {[%clk 0:02:18]} 6. Bxe2 {[%clk 0:02:53]}  c5 {[%clk 0:02:18]} 7. c3 {[%clk 0:02:44]}  Nc6 {[%clk 0:02:18]} 8. O-O {[%clk 0:02:42]}  Nge7 {[%clk 0:02:16]} 9. f4 {[%clk 0:02:38]}  g6 {[%clk 0:02:13]} 10. dxc5 {[%clk 0:02:37]}  Nf5 {[%clk 0:02:09]} 11. Qe1 {[%clk 0:02:36]}  Bxc5+ {[%clk 0:02:08]} 12. Kh2 {[%clk 0:02:36]}  h5 {[%clk 0:02:04]} 13. b4 {[%clk 0:02:27]}  Bb6 {[%clk 0:01:55]} 14. Na3 {[%clk 0:02:27]}  h4 {[%clk 0:01:51]} 15. Bd3 {[%clk 0:02:22]}  Nce7 {[%clk 0:01:31]} 16. c4 {[%clk 0:02:16]}  Bd4 {[%clk 0:01:24]} 17. Rb1 {[%clk 0:02:11]}  Ng3 {[%clk 0:01:19]} 18. Rf3 {[%clk 0:02:10]}  Nef5 {[%clk 0:01:01]} 19. cxd5 {[%clk 0:02:09]}  Qxd5 {[%clk 0:01:00]} 20. Nc4 {[%clk 0:02:09]}  Kf8 {[%clk 0:00:59]} 21. Nd2 {[%clk 0:01:58]}  Kg7 {[%clk 0:00:57]} 22. Ne4 {[%clk 0:01:51]}  Rhd8 {[%clk 0:00:43]} 23. a3 {[%clk 0:01:42]}  Rac8 {[%clk 0:00:38]} 24. Bb2 {[%clk 0:01:42]}  Be3 {[%clk 0:00:34]} 25. Nd6 {[%clk 0:01:36]}  Qxd3 {[%clk 0:00:28]} 26. Nxc8 {[%clk 0:01:26]}  Rxc8 {[%clk 0:00:29]} 27. Bc1 {[%clk 0:01:26]}  Qxb1 {[%clk 0:00:26]} 28. Bd2 {[%clk 0:00:38]}  Qxe1 {[%clk 0:00:26]} 29. Bxe1 {[%clk 0:00:38]}  Rc1 {[%clk 0:00:26]} 30. Bxg3 {[%clk 0:00:36]}  hxg3+ {[%clk 0:00:26]} 31. Rxg3 {[%clk 0:00:37]}  Nxg3 {[%clk 0:00:26]} 32. Kxg3 {[%clk 0:00:38]}  Rc3 {[%clk 0:00:25]} 33. Kf3 {[%clk 0:00:39]}  Rxa3 {[%clk 0:00:25]} 34. Ke4 {[%clk 0:00:40]}  a5 {[%clk 0:00:24]} 35. g4 {[%clk 0:00:40]}  axb4 {[%clk 0:00:24]} 36. f5 {[%clk 0:00:41]}  exf5+ {[%clk 0:00:24]} 37. gxf5 {[%clk 0:00:42]}  gxf5+ {[%clk 0:00:24]} 38. Kxf5 {[%clk 0:00:41]}  b3 {[%clk 0:00:25]} 39. h4 {[%clk 0:00:42]}  b2 {[%clk 0:00:25]} 40. h5 {[%clk 0:00:43]}  b1=Q+ {[%clk 0:00:26]} 41. Kg4 {[%clk 0:00:44]}  Qe4+ {[%clk 0:00:24]} 42. Kh3 {[%clk 0:00:44]}  Bd4+ {[%clk 0:00:24]} 43. Kh2 {[%clk 0:00:44]}  Qc2+ {[%clk 0:00:24]} 44. Kh1 {[%clk 0:00:44]}  Ra1# {[%clk 0:00:25]} 0-1


[Site "https://www.chess.com"]